bitfinex/quotes_BTCUSD_20251015
["timestamp","ask_amount","ask_price","bid_price","bid_amount"]
[1760536045517,0.19951735,111480.0,111470.0,0.11891002]
[1760536045734,0.0082565,111480.0,111470.0,0.00015002]
[1760536045942,0.02011298,111480.0,111470.0,0.00015002]
[1760536046429,0.19951735,111480.0,111470.0,0.00015002]
[1760536046648,0.02011298,111480.0,111470.0,0.00015002]
[1760536046865,0.02011298,111480.0,111470.0,0.18654095]
[1760536046866,0.0082565,111480.0,111470.0,0.18654095]
[1760536047086,0.0082565,111480.0,111470.0,0.31772631]
[1760536047278,0.01185648,111510.0,111490.0,0.17938563]
[1760536047530,4.649424,111500.0,111490.0,0.17938563]
[1760536047961,4.649424,111500.0,111480.0,0.18835942]
[1760536048173,4.649424,111500.0,111480.0,0.39668954]
[1760536048384,4.649424,111500.0,111480.0,0.45916211]
[1760536048595,4.989424,111500.0,111490.0,0.18745307]
[1760536048817,4.989424,111500.0,111490.0,0.17938828]
[1760536049007,4.649424,111510.0,111490.0,0.17938828]
[1760536049281,0.01185648,111500.0,111490.0,0.17938828]
[1760536049499,0.34,111510.0,111490.0,0.24323532]
[1760536049716,4.649424,111500.0,111490.0,0.45148544]
[1760536049961,8e-05,111530.0,111510.0,0.17934955]
[1760536050185,4.82876551,111520.0,111490.0,0.33292544]
[1760536050404,4.649424,111510.0,111490.0,0.73292544]
[1760536050619,4.649424,111510.0,111500.0,0.17937219]
[1760536050845,4.649424,111520.0,111500.0,0.08968208]
[1760536051084,4.649424,111520.0,111440.0,0.1794217]
[1760536051085,0.18836901,111490.0,111440.0,0.1794217]
[1760536051320,0.18836901,111490.0,111470.0,0.0717521]
[1760536051321,4.82882837,111480.0,111470.0,0.0717521]
[1760536051545,0.51940437,111480.0,111460.0,0.20825012]
[1760536051988,0.34,111480.0,111460.0,0.08969012]
[1760536052208,0.17942047,111470.0,111460.0,0.2832515]
[1760536052433,0.17942047,111470.0,111450.0,0.00015002]
[1760536052645,0.52837649,111480.0,111450.0,0.26929144]
[1760536052854,0.1912771,111470.0,111450.0,0.08984014]
[1760536053071,4.649424,111460.0,111450.0,0.20836014]
[1760536053285,0.17943656,111460.0,111450.0,0.00015002]
[1760536053768,5.16886056,111460.0,111450.0,0.00015002]
[1760536053984,4.989424,111460.0,111450.0,0.00015002]
[1760536054412,5.16886056,111460.0,111450.0,0.00015002]
[1760536055521,5.28615795,111460.0,111450.0,0.00015002]
[1760536055737,5.19647587,111460.0,111450.0,0.00015002]
[1760536055947,5.17717901,111460.0,111450.0,0.00015002]
[1760536057497,0.17946877,111440.0,111430.0,0.00058537]
[1760536057722,4.82889277,111440.0,111430.0,0.00073531]
[1760536057932,4.84819252,111440.0,111430.0,0.00073531]
[1760536058366,5.18819252,111440.0,111430.0,0.00073531]
[1760536058587,5.20650743,111440.0,111430.0,0.00073531]
[1760536059039,5.29618951,111440.0,111430.0,0.00073531]
[1760536059252,5.35621345,111440.0,111430.0,1e-08]
[1760536059478,5.38232971,111440.0,111430.0,1e-08]
[1760536059694,5.39562918,111440.0,111430.0,1e-08]
[1760536060402,5.4207214,111440.0,111430.0,1e-08]
[1760536060800,5.21469663,111440.0,111430.0,1e-08]
[1760536061036,5.36116593,111440.0,111430.0,1e-08]
[1760536061250,5.31531391,111440.0,111430.0,1e-08]
[1760536061717,5.21613371,111440.0,111430.0,1e-08]
[1760536062382,5.21813371,111440.0,111430.0,1e-08]
[1760536062595,5.23278638,111440.0,111430.0,1e-08]
[1760536062801,5.23078638,111440.0,111430.0,1e-08]
[1760536063283,0.17951709,111410.0,111400.0,1e-08]
[1760536063494,0.17951709,111410.0,111380.0,0.0717521]
[1760536063495,5.64241733,111390.0,111380.0,0.0717521]
[1760536063730,5.28241733,111390.0,111380.0,0.0717521]
[1760536063973,0.17958157,111370.0,111360.0,0.0717521]
[1760536064199,4.80244957,111370.0,111360.0,0.0717521]
[1760536064431,4.622868,111350.0,111340.0,0.0717521]
[1760536064656,4.622868,111350.0,111340.0,0.09844206]
[1760536064887,4.962868,111350.0,111340.0,0.02668996]
[1760536065113,5.14248183,111350.0,111340.0,0.02668996]
[1760536065366,4.96301787,111350.0,111340.0,0.02668996]
[1760536065607,4.96301787,111350.0,111340.0,0.20631992]
[1760536065831,5.1426317,111350.0,111340.0,0.02668996]
[1760536066070,0.18862603,111340.0,111310.0,0.0002]
[1760536066318,0.01185648,111330.0,111320.0,0.17965822]
[1760536066553,0.20047362,111340.0,111310.0,0.0002]
[1760536066788,0.01077824,111330.0,111310.0,0.18629041]
[1760536066982,4.80253023,111320.0,111310.0,0.0002]
[1760536069292,4.80353023,111320.0,111310.0,0.0002]
[1760536070856,5.24321231,111320.0,111310.0,0.0002]
[1760536071307,5.15353023,111320.0,111310.0,0.0002]
[1760536071573,5.18971251,111320.0,111310.0,0.0002]
[1760536071801,4.80259481,111280.0,111270.0,0.0717521]
[1760536072027,4.80259481,111280.0,111250.0,0.0002]
[1760536072028,5.6788094,111260.0,111250.0,0.0002]
[1760536072254,5.3088094,111260.0,111250.0,0.0002]
[1760536072468,5.31832583,111260.0,111250.0,0.0002]
[1760536073121,5.31847551,111260.0,111250.0,0.0002]
[1760536073347,5.31847551,111260.0,111250.0,1e-08]
[1760536073573,5.31847551,111260.0,111220.0,1.6257856]
[1760536073574,5.17885788,111230.0,111220.0,1.6257856]
[1760536073806,5.17885788,111230.0,111210.0,0.19310549]
[1760536073807,0.66598988,111230.0,111210.0,0.19310549]
[1760536074037,0.66598988,111230.0,111190.0,0.1127797]
[1760536074038,0.55603839,111200.0,111190.0,0.1127797]
[1760536074264,0.55608693,111170.0,111150.0,1e-08]
[1760536074526,0.55608693,111170.0,111080.0,0.0717521]
[1760536074527,0.55608693,111170.0,111070.0,0.0717521]
[1760536074528,0.34,111090.0,111070.0,0.0717521]
[1760536074750,3.374831,111090.0,111070.0,0.16861743]
[1760536074971,0.429896,111080.0,111070.0,0.01540868]
[1760536075193,0.18003866,111090.0,111060.0,0.1890846]
[1760536075194,0.089896,111090.0,111060.0,0.1890846]
[1760536075441,0.089896,111070.0,111060.0,0.28700819]
[1760536075676,0.089896,111070.0,111060.0,0.1890846]
[1760536075924,0.00014929,111080.0,111070.0,0.16506662]
[1760536076139,0.00014929,111080.0,111070.0,0.58895075]
[1760536076619,1e-08,111080.0,111070.0,0.58895075]
[1760536076853,3.284935,111190.0,111160.0,0.00899604]
[1760536077114,3.284935,111190.0,111150.0,0.30916573]
[1760536077115,3.284935,111180.0,111150.0,0.30916573]
[1760536077345,0.50015068,111190.0,111180.0,0.17988846]
[1760536077346,0.00015068,111190.0,111180.0,0.17988846]
[1760536077837,0.00015068,111190.0,111180.0,0.33663074]
[1760536078089,0.00015068,111190.0,111180.0,0.30044846]
[1760536078349,0.00015068,111190.0,111150.0,0.18892573]
[1760536078590,3.284935,111180.0,111150.0,0.18893327]
[1760536078835,3.284935,111160.0,111150.0,0.03778678]
[1760536079056,0.34,111180.0,111140.0,0.00899766]
[1760536079282,3.29679148,111170.0,111140.0,0.18894828]
[1760536079505,3.284935,111160.0,111150.0,0.19026973]
[1760536079744,3.284935,111170.0,111160.0,0.17992067]
[1760536079968,0.34,111180.0,111160.0,0.17992067]
[1760536079969,3.284935,111180.0,111170.0,0.17990465]
[1760536080414,0.00015068,111190.0,111180.0,0.17988846]
[1760536081077,3.284935,111180.0,111160.0,0.34684214]
[1760536081296,0.00015068,111190.0,111170.0,0.17990465]
[1760536081514,0.13603946,111200.0,111180.0,0.17988846]
[1760536081738,3.284935,111190.0,111180.0,0.00050036]
[1760536082228,3.284935,111210.0,111200.0,0.17985611]
[1760536082662,3.284935,111210.0,111190.0,0.17987229]
[1760536082879,3.46478503,111210.0,111180.0,0.00050036]
[1760536083097,3.284935,111220.0,111200.0,0.1798476]
[1760536083325,3.29679148,111210.0,111190.0,0.17987111]
[1760536083559,3.284935,111200.0,111190.0,0.03692543]
[1760536083781,3.284935,111210.0,111190.0,0.03692543]
[1760536084229,0.25163271,111240.0,111200.0,0.18884891]
[1760536084230,3.284935,111230.0,111200.0,0.18884891]
[1760536084452,3.46474448,111230.0,111200.0,0.18884891]
[1760536084671,3.284935,111210.0,111200.0,0.17985611]
[1760536084905,3.284935,111240.0,111220.0,0.17982101]
[1760536085131,3.284935,111240.0,111200.0,0.18592409]
[1760536085132,3.284935,111240.0,111200.0,0.18884891]
[1760536085367,3.284935,111240.0,111210.0,0.30071939]
[1760536085368,0.01185648,111230.0,111210.0,0.30071939]
[1760536085841,3.284935,111220.0,111210.0,0.30071939]
[1760536086096,3.284935,111240.0,111220.0,0.1798159]
[1760536086368,3.284935,111240.0,111220.0,0.21559531]
[1760536086617,3.284935,111250.0,111230.0,0.3066615]
[1760536086860,3.284935,111240.0,111230.0,0.30064733]
[1760536087111,3.284935,111250.0,111230.0,0.30064733]
[1760536087302,3.284935,111240.0,111230.0,0.12084]
[1760536087553,3.464711,111250.0,111230.0,0.12084]
[1760536087777,3.284935,111230.0,111210.0,0.31009174]
[1760536088040,3.284935,111230.0,111210.0,0.09019048]
[1760536088041,3.79679148,111220.0,111210.0,0.09019048]
[1760536088269,3.46475877,111220.0,111210.0,0.00050036]
[1760536088722,3.46475877,111220.0,111210.0,0.09019048]
[1760536088967,3.284935,111220.0,111210.0,0.11780613]
[1760536089222,3.46475877,111220.0,111210.0,0.00050036]
[1760536089477,3.284935,111220.0,111210.0,0.00050036]
[1760536089709,3.46475877,111220.0,111210.0,0.00050036]
[1760536089932,3.80475877,111220.0,111210.0,0.00050036]
[1760536090394,3.81475877,111220.0,111210.0,0.00050036]
[1760536090886,3.80475877,111220.0,111210.0,0.00050036]
[1760536091133,3.62293477,111220.0,111210.0,0.00050036]
[1760536091372,3.62293477,111220.0,111210.0,0.01340455]
[1760536091850,3.64293477,111220.0,111210.0,0.01340455]
[1760536092384,3.30293477,111220.0,111210.0,1e-08]
[1760536092611,3.34926126,111220.0,111210.0,1e-08]
[1760536092845,3.35858628,111220.0,111210.0,1e-08]
[1760536093325,3.40314969,111220.0,111210.0,1e-08]
[1760536093572,3.35909784,111220.0,111210.0,1e-08]
[1760536093826,3.40366125,111220.0,111210.0,1e-08]
[1760536094308,3.74382085,111220.0,111210.0,1e-08]
[1760536094534,3.7182064,111220.0,111210.0,1e-08]
[1760536094765,3.69909784,111220.0,111210.0,1e-08]
[1760536095021,3.68844207,111220.0,111210.0,1e-08]
[1760536095470,3.69909784,111220.0,111210.0,1e-08]
[1760536096159,3.31225979,111220.0,111210.0,1e-08]
[1760536096396,3.30293477,111220.0,111210.0,1e-08]
[1760536096832,3.32291556,111220.0,111210.0,1e-08]
[1760536097047,3.66291556,111220.0,111210.0,1e-08]
[1760536097270,3.69909784,111220.0,111210.0,1e-08]
[1760536098020,3.73565968,111220.0,111210.0,1e-08]
[1760536098236,3.86242542,111220.0,111210.0,1e-08]
[1760536098453,3.75981417,111220.0,111210.0,1e-08]
[1760536098699,3.76828917,111220.0,111210.0,1e-08]
[1760536098938,3.62301565,111170.0,111160.0,0.0717521]
[1760536099153,3.74301565,111170.0,111160.0,0.07225154]
[1760536099371,3.75235294,111170.0,111160.0,0.00049944]
[1760536099597,3.74301565,111170.0,111160.0,0.00049944]
[1760536099822,3.62301565,111170.0,111160.0,0.00049944]
[1760536100480,3.68235294,111170.0,111160.0,0.00049944]
[1760536100930,3.7830804,111130.0,111120.0,0.0717521]
[1760536101147,3.623582,111130.0,111120.0,0.0717521]
[1760536101372,3.2831128,111110.0,111100.0,0.0717521]
[1760536101588,3.103111,111110.0,111100.0,0.0717521]
[1760536101802,3.103111,111110.0,111100.0,0.18719039]
[1760536102018,3.103111,111110.0,111100.0,0.00717521]
[1760536102236,3.103111,111120.0,111090.0,0.18903268]
[1760536102472,0.01085062,111110.0,111090.0,0.18903268]
[1760536102715,0.18001831,111100.0,111070.0,0.1890662]
[1760536102940,0.01185648,111090.0,111080.0,0.121]
[1760536103159,0.18000757,111110.0,111090.0,0.18002285]
[1760536103376,3.103111,111110.0,111100.0,0.18678808]
[1760536103595,0.25171947,111140.0,111120.0,0.1799827]
[1760536103596,3.103111,111130.0,111120.0,0.1799827]
[1760536103821,0.0717521,111140.0,111110.0,0.18896974]
[1760536103822,3.103111,111120.0,111110.0,0.18896974]
[1760536104072,3.103111,111120.0,111110.0,0.05886788]
[1760536104291,3.28311465,111110.0,111090.0,0.18903321]
[1760536104510,3.103111,111110.0,111080.0,0.21915952]
[1760536104724,3.103111,111110.0,111100.0,0.180018]
[1760536104949,0.0005016,111120.0,111100.0,0.18123483]
[1760536105272,0.01235808,111120.0,111100.0,0.04599607]
[1760536105493,3.103111,111110.0,111100.0,0.121]
[1760536105726,3.103111,111100.0,111080.0,0.21915952]
[1760536105951,3.103111,111090.0,111080.0,0.18005041]
[1760536106176,3.103111,111100.0,111070.0,0.00900333]
[1760536106405,3.103111,111090.0,111080.0,0.1800496]
[1760536106644,3.103111,111090.0,111080.0,0.04039627]
[1760536106888,3.103111,111090.0,111070.0,0.18006572]
[1760536107113,3.103111,111090.0,111070.0,0.00471824]
[1760536107349,0.01185648,111080.0,111050.0,0.30993679]
[1760536107620,0.18008334,111060.0,111040.0,0.32619444]
[1760536107853,0.1977594,111070.0,111040.0,0.26329158]
[1760536108075,0.0093463,111050.0,111040.0,0.0252]
[1760536108301,0.01384535,111050.0,111040.0,0.20531527]
[1760536108527,3.10361198,111050.0,111040.0,0.20531527]
[1760536108771,0.00050098,111050.0,111040.0,0.2449415]
[1760536108991,0.00050098,111050.0,111040.0,0.45559162]
[1760536109236,0.00050098,111050.0,111040.0,0.33463162]
[1760536109459,0.00050098,111050.0,111040.0,0.32627527]
[1760536109916,0.00050098,111050.0,111040.0,0.14616]
[1760536110142,3.29321008,111050.0,111040.0,0.0252]
[1760536110374,3.63321008,111050.0,111040.0,0.0252]
[1760536110600,3.29321008,111050.0,111040.0,0.0252]
[1760536110826,3.11311103,111050.0,111040.0,0.02641749]
[1760536111275,0.01000003,111050.0,111040.0,0.20653276]
[1760536111521,0.00050098,111050.0,111040.0,0.20653276]
[1760536111748,0.1800366,111090.0,111050.0,0.18009697]
[1760536111971,2.943879,111070.0,111050.0,0.18024765]
[1760536112186,2.95276991,111070.0,111050.0,0.18024864]
[1760536112405,0.18903831,111090.0,111060.0,0.17508283]
[1760536112717,0.00828294,111090.0,111070.0,0.18006662]
[1760536112932,0.0717521,111120.0,111090.0,0.1800342]
[1760536113154,0.0717521,111140.0,111110.0,0.1799986]
[1760536113381,0.0717521,111140.0,111120.0,0.19798382]
[1760536113605,0.0717521,111140.0,111120.0,0.30117281]
[1760536113834,0.0717521,111140.0,111110.0,0.23982062]
[1760536113835,2.943879,111130.0,111110.0,0.04112938]
[1760536114072,2.95287828,111120.0,111090.0,0.08969012]
[1760536114330,3.1238646,111120.0,111110.0,0.00015068]
[1760536114813,3.4638646,111120.0,111110.0,0.00015068]
[1760536115039,3.4638646,111120.0,111060.0,0.12168]
[1760536115040,0.18005177,111080.0,111060.0,0.0792]
[1760536115278,0.18009136,111060.0,111040.0,0.0252]
[1760536115509,3.12394591,111070.0,111060.0,0.00014929]
[1760536115987,3.47394591,111070.0,111060.0,0.00014929]
[1760536116236,3.46396183,111060.0,111050.0,0.08969012]
[1760536116446,3.4841121,111060.0,111050.0,0.08969012]
[1760536116923,3.12397805,111050.0,111040.0,1e-08]
[1760536117152,3.46404294,111010.0,111000.0,0.69489698]
[1760536117372,3.56014013,111010.0,111000.0,0.14215356]
[1760536117595,3.52395785,111010.0,111000.0,0.06723161]
[1760536117858,3.23404294,111010.0,111000.0,0.06723161]
[1760536118094,3.23404294,111010.0,111000.0,0.15692173]
[1760536118312,3.23831498,111010.0,111000.0,0.15692173]
[1760536118540,3.05402916,111010.0,111000.0,0.15692173]
[1760536118812,3.2341931,111010.0,111000.0,0.15692173]
[1760536119282,0.00015016,111010.0,111000.0,0.45930191]
[1760536119510,0.00015016,111010.0,111000.0,0.15692173]
[1760536119738,0.00015016,111010.0,111000.0,0.45934191]
[1760536119966,0.00015016,111010.0,111000.0,0.79934191]
[1760536120190,0.00015016,111010.0,111000.0,0.45934191]
[1760536120669,0.00015016,111010.0,111000.0,0.15692173]
[1760536120887,0.00015016,111010.0,111000.0,0.20756962]
[1760536121105,0.1803141,111010.0,111000.0,0.06723161]
[1760536121329,0.00015016,111010.0,111000.0,0.06723161]
[1760536121548,0.00015016,111010.0,111000.0,0.24741179]
[1760536121770,0.00015016,111010.0,111000.0,0.62359407]
[1760536122443,1e-08,111010.0,111000.0,6.14950625]
[1760536122655,1e-08,111010.0,111000.0,5.624812]
[1760536122870,1e-08,111010.0,111000.0,6.024812]
[1760536123092,1e-08,111010.0,111000.0,6.61718884]
[1760536123318,1e-08,111010.0,111000.0,1.26231666]
[1760536123538,1e-08,111010.0,111000.0,6.33954884]
[1760536123757,1e-08,111010.0,111000.0,1.15072418]
[1760536123992,1e-08,111010.0,111000.0,0.624812]
[1760536124245,1e-08,111010.0,111000.0,1.147132]
[1760536124460,1e-08,111010.0,111000.0,1.025812]
[1760536124645,1e-08,111010.0,111000.0,0.684812]
[1760536124891,1e-08,111010.0,111000.0,0.37094972]
[1760536125114,1e-08,111010.0,111000.0,1.27404418]
[1760536125330,1e-08,111010.0,111000.0,1.147132]
[1760536125552,1e-08,111010.0,111000.0,1.024812]
[1760536125772,1e-08,111010.0,111000.0,0.64862972]
[1760536125991,1e-08,111010.0,111000.0,0.77106972]
[1760536126211,1e-08,111010.0,111000.0,1.147252]
[1760536126643,1e-08,111010.0,111000.0,1.67316418]
[1760536126881,1e-08,111010.0,111000.0,1.024812]
[1760536127104,1e-08,111010.0,111000.0,0.807252]
[1760536127325,0.0717521,111040.0,111020.0,0.18014665]
[1760536127544,0.0717521,111040.0,111030.0,0.69676691]
[1760536127771,0.00990459,111040.0,111030.0,0.67875377]
[1760536127996,0.00990459,111040.0,111020.0,0.18064763]
[1760536128256,0.25183512,111060.0,111030.0,0.32058463]
[1760536128469,0.18008392,111060.0,111030.0,0.31157806]
[1760536128686,0.1891129,111070.0,111050.0,0.18009813]
[1760536128687,0.00900333,111070.0,111050.0,0.18009813]
[1760536128903,0.00889093,111060.0,111050.0,0.18910308]
[1760536129120,0.00889093,111060.0,111050.0,0.31162308]
[1760536129334,0.00889093,111060.0,111050.0,0.12252]
[1760536129550,0.00889093,111060.0,111030.0,0.22532034]
[1760536129766,0.00949907,111040.0,111030.0,0.18913806]
[1760536129982,0.00949907,111040.0,111030.0,0.34780034]
[1760536130204,0.18907087,111070.0,111040.0,0.18910123]
[1760536130426,0.18907087,111070.0,111030.0,0.34780034]
[1760536130427,0.26993274,111060.0,111050.0,0.12252]
[1760536130683,0.26993274,111060.0,111020.0,0.00050098]
[1760536130684,0.18911632,111050.0,111020.0,0.00050098]
[1760536130921,0.18908701,111060.0,111040.0,0.18011403]
[1760536131148,0.18005112,111080.0,111060.0,0.18007784]
[1760536131377,0.25182282,111070.0,111060.0,0.08969012]
[1760536131614,0.18910175,111060.0,111030.0,0.19813925]
[1760536131843,0.18009922,111050.0,111040.0,0.12264]
[1760536132065,0.18908253,111110.0,111060.0,0.18908462]
[1760536132286,0.18908253,111110.0,111030.0,0.22532023]
[1760536132287,0.18006662,111070.0,111030.0,0.22532023]
[1760536132510,0.18009905,111050.0,111040.0,0.12276]
[1760536132732,0.18009905,111050.0,111040.0,0.1228]
[1760536132962,0.18908855,111060.0,111040.0,0.39256518]
[1760536133203,0.18906995,111070.0,111040.0,0.39256518]
[1760536133204,0.18906995,111070.0,111050.0,0.0180099]
[1760536133400,0.18897376,111060.0,111040.0,0.12276]
[1760536133664,0.18011994,111040.0,111020.0,0.18915487]
[1760536133887,0.18011547,111040.0,111020.0,0.08969012]
[1760536134113,0.18011547,111040.0,111000.0,0.25636456]
[1760536134114,0.18014822,111020.0,111000.0,0.25636456]
[1760536134345,0.18014843,111020.0,111000.0,0.15692173]
[1760536134562,0.18014843,111020.0,111010.0,0.12276]
[1760536134791,0.18016394,111010.0,111000.0,0.06723161]
[1760536135030,0.19128553,111010.0,111000.0,0.06723161]
[1760536135263,0.18014843,111020.0,111000.0,0.06723161]
[1760536135513,5.18016394,111010.0,111000.0,0.06773259]
[1760536136494,5.19128553,111010.0,111000.0,0.06773259]
[1760536136945,5.20128553,111010.0,111000.0,0.06773259]
[1760536137171,5.20228553,111010.0,111000.0,0.06773259]
[1760536137397,5.20128553,111010.0,111000.0,0.06773259]
[1760536137850,5.20328553,111010.0,111000.0,0.06773259]
[1760536138071,5.20128553,111010.0,111000.0,0.06773259]
[1760536138315,5.19128553,111010.0,111000.0,0.06773259]
[1760536138529,0.01112159,111010.0,111000.0,0.06895052]
[1760536138741,5.19128553,111010.0,111000.0,0.06895052]
[1760536139844,0.01312159,111010.0,111000.0,0.06895052]
[1760536140065,0.002,111010.0,111000.0,0.2491307]
[1760536140303,0.18913806,111030.0,111000.0,0.37205028]
[1760536140538,0.01071585,111030.0,111010.0,0.02502458]
[1760536140784,0.0717521,111040.0,111020.0,0.18014772]
[1760536141019,0.26083907,111060.0,111030.0,0.01801314]
[1760536141267,0.0717521,111080.0,111050.0,0.18009432]
[1760536141503,0.001,111080.0,111060.0,0.32105111]
[1760536141737,0.0084856,111080.0,111070.0,0.19807328]
[1760536141966,0.17999298,111120.0,111080.0,0.18905293]
[1760536142210,0.001,111110.0,111090.0,0.32115626]
[1760536142442,0.00015074,111110.0,111100.0,0.0180018]
[1760536142898,0.18015254,111110.0,111100.0,0.1412018]
[1760536143136,0.18015254,111110.0,111090.0,0.18003225]
[1760536143137,0.1800185,111100.0,111070.0,0.18906995]
[1760536143360,0.1890194,111100.0,111070.0,0.27876007]
[1760536143848,0.1890194,111100.0,111080.0,0.12316]
[1760536144064,0.001,111090.0,111070.0,0.18006576]
[1760536144291,0.001,111090.0,111080.0,0.64317041]
[1760536144580,0.00015074,111110.0,111080.0,0.64317041]
[1760536144581,0.00015074,111110.0,111100.0,0.180018]
[1760536144806,0.00015074,111110.0,111100.0,0.303258]
[1760536145047,0.00015074,111110.0,111100.0,0.26970812]
[1760536145289,0.00015074,111110.0,111100.0,0.39290812]
[1760536145725,0.00015074,111110.0,111100.0,0.39294812]
[1760536146171,0.00015074,111110.0,111100.0,0.39316495]
[1760536146392,0.00015074,111110.0,111100.0,1.19447732]
[1760536146616,0.0717521,111160.0,111150.0,0.17993702]
[1760536146851,0.0719027,111160.0,111150.0,0.12324]
[1760536147083,0.0719027,111160.0,111140.0,0.12324]
[1760536147312,5.18093702,111150.0,111120.0,0.17998149]
[1760536147546,5.18093702,111150.0,111100.0,0.5280189]
[1760536147547,0.17997041,111130.0,111100.0,0.0090009]
[1760536147776,0.18098703,111120.0,111100.0,0.001]
[1760536147998,0.18895111,111140.0,111110.0,0.1800018]
[1760536147999,5.0,111140.0,111110.0,0.1800018]
[1760536148228,0.17995427,111140.0,111120.0,0.17998493]
[1760536148466,0.17995427,111140.0,111110.0,0.18000164]
[1760536148467,0.18895193,111140.0,111110.0,0.18000164]
[1760536148683,0.17995339,111140.0,111120.0,0.17998225]
[1760536148909,0.17995347,111140.0,111120.0,0.17998513]
[1760536149138,0.17996971,111130.0,111100.0,0.18897656]
[1760536149366,0.17999645,111120.0,111100.0,0.09869102]
[1760536149589,0.17999645,111120.0,111090.0,0.189035]
[1760536149842,0.17999645,111120.0,111090.0,0.08984086]
[1760536149843,0.18000978,111110.0,111090.0,0.08984086]
[1760536150075,0.18899573,111120.0,111090.0,0.01548435]
[1760536150305,0.001,111110.0,111100.0,0.180018]
[1760536150527,0.18098578,111120.0,111090.0,0.18918645]
[1760536150757,0.180018,111100.0,111090.0,0.00015074]
[1760536151650,5.200018,111100.0,111090.0,0.00015074]
[1760536151868,5.540018,111100.0,111090.0,0.00015074]
[1760536152299,5.180018,111100.0,111090.0,0.00015074]
[1760536152519,5.190018,111100.0,111090.0,0.00015074]
[1760536152753,5.190018,111100.0,111090.0,0.00136768]
[1760536153202,5.0,111100.0,111090.0,0.19940134]
[1760536153432,0.181018,111100.0,111090.0,0.00136768]
[1760536153689,0.18898506,111120.0,111090.0,0.18140074]
[1760536153907,5.0,111120.0,111110.0,0.18000135]
[1760536154132,0.0717521,111130.0,111120.0,0.1799856]
[1760536154353,0.25169147,111150.0,111120.0,0.18898488]
[1760536154572,0.26068832,111150.0,111130.0,0.1799694]
[1760536154795,0.2517362,111170.0,111150.0,0.17993702]
[1760536155011,0.2517362,111170.0,111140.0,0.17995321]
[1760536155232,0.1799841,111170.0,111150.0,0.17993622]
[1760536155450,0.17990465,111170.0,111150.0,0.17993622]
[1760536155668,0.26109419,111190.0,111160.0,0.17992052]
[1760536155885,0.00050222,111170.0,111150.0,0.31197307]
[1760536156097,0.18040687,111170.0,111150.0,0.31197307]
[1760536156315,0.1894021,111170.0,111140.0,0.17995201]
[1760536156539,0.17993702,111150.0,111140.0,0.08969012]
[1760536156976,0.17993702,111150.0,111130.0,0.30292869]
[1760536156977,0.17993735,111150.0,111130.0,0.30292869]
[1760536157188,0.17993831,111150.0,111130.0,0.17996869]
[1760536157418,0.18891781,111160.0,111140.0,0.17995271]
[1760536157646,0.17993702,111150.0,111140.0,0.18895037]
[1760536157864,0.17993869,111150.0,111140.0,0.12292]
[1760536158088,0.00050222,111170.0,111140.0,0.27864099]
[1760536158313,0.00050222,111170.0,111160.0,0.17992083]
[1760536158813,0.00050222,111170.0,111160.0,0.26961095]
[1760536159500,0.00050222,111170.0,111160.0,0.42863323]
[1760536159724,0.00050222,111170.0,111160.0,0.42859323]
[1760536160402,0.00050222,111170.0,111160.0,0.1258724]
[1760536160624,0.00050222,111170.0,111160.0,0.44629687]
[1760536160842,0.00050222,111170.0,111160.0,0.30679323]
[1760536161063,0.00050222,111170.0,111160.0,0.42859323]
[1760536161517,0.00050222,111170.0,111160.0,0.42955323]
[1760536161740,0.00050222,111170.0,111160.0,0.30579323]
[1760536161957,0.0004,111190.0,111180.0,0.21607074]
[1760536162182,0.00055057,111190.0,111180.0,0.42856086]
[1760536162645,0.00055057,111190.0,111180.0,0.82856086]
[1760536162857,0.00055057,111190.0,111180.0,0.70576086]
[1760536163294,0.00055057,111190.0,111180.0,0.82844086]
[1760536163510,0.00055057,111190.0,111180.0,0.70576086]
[1760536163723,0.00055057,111190.0,111180.0,0.83044086]
[1760536164190,0.00055057,111190.0,111180.0,1.17040086]
[1760536164408,0.0721521,111240.0,111220.0,0.1798098]
[1760536164621,0.0721521,111240.0,111210.0,0.21602222]
[1760536164622,0.0717521,111220.0,111210.0,0.21602222]
[1760536164836,0.18880303,111230.0,111200.0,0.17985548]
[1760536165054,0.18933323,111240.0,111210.0,0.19683616]
[1760536165312,0.18034201,111240.0,111220.0,0.17981972]
[1760536165530,0.18034593,111240.0,111230.0,0.01798076]
[1760536165754,0.00055048,111240.0,111230.0,0.14058076]
[1760536165980,0.18134192,111240.0,111230.0,0.14058076]
[1760536166195,0.18034192,111240.0,111230.0,0.14058076]
[1760536166411,0.18034192,111240.0,111230.0,0.01798076]
[1760536166633,0.1798076,111230.0,111220.0,0.14058075]
[1760536166860,0.17984465,111210.0,111190.0,0.17986956]
[1760536167087,0.17982377,111220.0,111200.0,0.44493803]
[1760536167300,0.17982377,111220.0,111200.0,0.21229012]
[1760536167528,0.17982377,111220.0,111210.0,0.1226]
[1760536167743,0.18879798,111230.0,111210.0,0.17983994]
[1760536167744,0.17980858,111230.0,111210.0,0.17983994]
[1760536167978,0.17980858,111230.0,111210.0,0.31135193]
[1760536168187,0.17982377,111220.0,111210.0,0.3023599]
[1760536168399,0.17982377,111220.0,111210.0,0.12252]
[1760536168616,0.17982377,111220.0,111200.0,0.2785329]
[1760536168836,0.18879896,111230.0,111210.0,0.30231994]
[1760536169326,0.18879896,111230.0,111220.0,0.12244]
[1760536169527,0.17982377,111220.0,111210.0,0.17983994]
[1760536169715,0.17982377,111220.0,111210.0,0.001]
[1760536169957,0.17982377,111220.0,111210.0,0.1224]
[1760536170177,0.17982377,111220.0,111210.0,0.12236]
[1760536170403,0.17982377,111220.0,111210.0,0.19659081]
[1760536170619,0.17982377,111220.0,111210.0,0.31919188]
[1760536170835,0.17982377,111220.0,111210.0,0.30311994]
[1760536171049,0.17982377,111220.0,111210.0,0.12328]
[1760536171264,0.17982377,111220.0,111210.0,0.01477653]
[1760536171495,0.17982377,111220.0,111210.0,0.12324]
[1760536171725,0.17982377,111220.0,111210.0,0.1232]
[1760536171955,0.18879896,111230.0,111210.0,0.1962556]
[1760536172174,0.17982377,111220.0,111210.0,0.001]
[1760536172394,0.17982377,111220.0,111210.0,0.14026312]
[1760536172633,0.17982377,111220.0,111210.0,0.14022312]
[1760536172893,0.17983994,111210.0,111200.0,1e-08]
[1760536173120,5.28983994,111210.0,111200.0,1e-08]
[1760536173343,5.62983994,111210.0,111200.0,1e-08]
[1760536174666,5.66802222,111210.0,111200.0,1e-08]
[1760536174887,5.63183994,111210.0,111200.0,1e-08]
[1760536175583,5.66802222,111210.0,111200.0,1e-08]
[1760536175806,5.63183994,111210.0,111200.0,1e-08]
[1760536176021,5.62983994,111210.0,111200.0,1e-08]
[1760536176449,5.63083994,111210.0,111200.0,1e-08]
[1760536176674,5.62983994,111210.0,111200.0,1e-08]
[1760536176898,5.63083994,111210.0,111200.0,1e-08]